[Event "European Online Club-ch-G 2021"]
[Site "Online"]
[Date "2021.03.27"]
[Round "3.14"]
[White "Stalmach, Richard"]
[Black "Houska, Jovanka"]
[Result "1-0"]
[ECO "D31"]
[WhiteElo "2296"]
[BlackElo "2381"]
[Annotator "NA"]
[PlyCount "89"]
[EventDate "2021.03.27"]
[EventType "team-tourn"]
[EventCountry "NET"]
[SourceTitle "playchess.com"]
[Source "ChessBase"]
[SourceQuality "1"]
[TimeControl "900+5"]

1. d4 {[%emt 0:00:00]} d5 {[%emt 0:00:03]} 2. c4 {[%emt 0:00:03]} e6 {[%emt 0:00:03]} 3. Nc3 {[%emt 0:00:08]} Be7 {[%emt 0:00:02]} 4. cxd5 {[%emt 0:00:44]} exd5 {[%emt 0:00:03]} 5. Bf4 {[%emt 0:00:02]} c6 {[%emt 0:00:04]} 6. e3 {[%emt 0:00:03]} Bd6 {[%emt 0:00:02]} 7. Bg3 {[%emt 0:02:12]} Bxg3 {[%emt 0:01:22]} 8. hxg3 {[%emt 0:00:03]} Bf5 {[%emt 0:00:02]} 9. Bd3 {[%emt 0:00:06]} Bxd3 {[%emt 0:00:02]} 10. Qxd3 {[%emt 0:00:02]} Nf6 {[%emt 0:00:01]} 11. Nf3 {[%emt 0:00:53]} Nbd7 {[%emt 0:00:07]} 12. O-O-O {[%emt 0:00:33]} Qe7 {[%emt 0:00:10]} 13. Nd2 {[%emt 0:00:24]} O-O-O {[%emt 0:00:07]} 14. Kb1 {[%emt 0:00:06]} Kb8 {[%emt 0:00:03]} 15. Rc1 {[%emt 0:01:31]} Nb6 {[%emt 0:00:43]} 16. Qc2 {[%emt 0:00:39]} h6 {[%emt 0:00:32]} 17. Rhe1 {[%emt 0:01:15]} Rhe8 {[%emt 0:00:20]} 18. Ka1 {[%emt 0:00:46]} Ng4 {[%emt 0:00:44]} 19. Re2 {[%emt 0:00:51]} g6 {[%emt 0:01:36]} 20. a3 {[%emt 0:01:53]} Rd6 {[%emt 0:00:46]} 21. Rce1 {[%emt 0:00:53]} Re6 {[%emt 0:00:03]} 22. Na4 {[%emt 0:00:17]} Nxa4 {[%emt 0:00:41]} 23. Qxa4 {[%emt 0:00:04]} Nf6 {[%emt 0:01:08]} 24. Nf3 {[%emt 0:00:27]} Ne4 {[%emt 0:00:07]} 25. Ne5 {[%emt 0:00:09]} g5 {[%emt 0:00:17]} 26. Rc2 {[%emt 0:00:20]} f6 {[%emt 0:01:39]} 27. Nd3 {[%emt 0:00:03]} Qh7 {[%emt 0:00:05]} 28. Qb3 {[%emt 0:00:26]} Ka8 {[%emt 0:00:18]} 29. Rec1 {[%emt 0:00:04]} h5 {[%emt 0:00:15]} 30. Qxd5 {[%emt 0:00:33]} Nxf2 {[%emt 0:01:11]} 31. Rxc6 {[%emt 0:02:00]} Rxc6 {[%emt 0:01:37]} 32. Rxc6 {[%emt 0:00:03]} Nxd3 {[%emt 0:00:03]} 33. Rxf6 {[%emt 0:00:06]} Qc7 {[%emt 0:00:12]} 34. Ka2 {[%emt 0:00:05]} Qc2 {[%emt 0:00:14]} 35. Qb5 {[%emt 0:00:04]} Rc8 {[%emt 0:00:19]} 36. Rf7 {[%emt 0:00:03]} Nc1+ {[%emt 0:00:33]} 37. Ka1 {[%emt 0:00:02]} Qxg2 {[%emt 0:00:08]} 38. d5 {[%emt 0:00:05]} Rb8 {[%emt 0:00:06]} 39. d6 {[%emt 0:00:04]} Qc2 {[%emt 0:00:34]} 40. Rc7 {[%emt 0:00:09]} Nb3+ {[%emt 0:01:29]} 41. Ka2 {[%emt 0:00:01]} Nc1+ {[%emt 0:00:02]} 42. Ka1 {[%emt 0:00:02]} Qd1 {[%emt 0:00:10]} 43. Qc4 {[%emt 0:00:09]} Nb3+ {[%emt 0:00:04]} 44. Ka2 {[%emt 0:00:02]} Nd2 {[%emt 0:00:09]} 45. Qd3 {[%emt 0:00:07]} 1-0

[Event "European Online Club-ch-G 2021"]
[Site "Online"]
[Date "2021.03.27"]
[Round "3.15"]
[White "Sukandar, Irine Kharisma"]
[Black "Frank, Adam"]
[Result "1-0"]
[ECO "C77"]
[WhiteElo "2413"]
[BlackElo "2238"]
[Annotator "NA"]
[PlyCount "125"]
[EventDate "2021.03.27"]
[EventType "team-tourn"]
[EventCountry "NET"]
[SourceTitle "playchess.com"]
[Source "ChessBase"]
[SourceQuality "1"]
[TimeControl "900+5"]

1. e4 {[%emt 0:00:00]} e5 {[%emt 0:00:02]} 2. Nf3 {[%emt 0:00:11]} Nc6 {[%emt 0:00:02]} 3. Bb5 {[%emt 0:00:03]} a6 {[%emt 0:00:03]} 4. Ba4 {[%emt 0:00:02]} Nf6 {[%emt 0:00:02]} 5. d4 {[%emt 0:00:12]} b5 {[%emt 0:00:34]} 6. dxe5 {[%emt 0:02:17]} bxa4 {[%emt 0:00:05]} 7. exf6 {[%emt 0:00:02]} Qxf6 {[%emt 0:00:05]} 8. O-O {[%emt 0:00:07]} Bd6 {[%emt 0:02:08]} 9. Nc3 {[%emt 0:01:09]} O-O {[%emt 0:00:28]} 10. Nxa4 {[%emt 0:00:15]} Re8 {[%emt 0:00:36]} 11. Nc3 {[%emt 0:00:06]} Bb7 {[%emt 0:00:06]} 12. Re1 {[%emt 0:00:41]} Ne5 {[%emt 0:00:20]} 13. Nxe5 {[%emt 0:01:22]} Bxe5 {[%emt 0:00:48]} 14. Bd2 {[%emt 0:00:34]} Rab8 {[%emt 0:00:49]} 15. Qg4 {[%emt 0:00:37]} Bc6 {[%emt 0:00:23]} 16. Rab1 {[%emt 0:00:21]} Bd4 {[%emt 0:00:11]} 17. Qg3 {[%emt 0:00:27]} d6 {[%emt 0:00:39]} 18. b3 {[%emt 0:00:26]} h5 {[%emt 0:00:40]} 19. Nd5 {[%emt 0:00:18]} Bxd5 {[%emt 0:00:07]} 20. exd5 {[%emt 0:00:02]} h4 {[%emt 0:00:01]} 21. Qf4 {[%emt 0:00:10]} Qxf4 {[%emt 0:00:45]} 22. Bxf4 {[%emt 0:00:03]} Bc3 {[%emt 0:00:02]} 23. Re3 {[%emt 0:00:33]} Rxe3 {[%emt 0:01:31]} 24. Bxe3 {[%emt 0:00:04]} f6 {[%emt 0:00:20]} 25. h3 {[%emt 0:00:12]} Kf7 {[%emt 0:00:05]} 26. Kf1 {[%emt 0:00:02]} g5 {[%emt 0:00:13]} 27. Ke2 {[%emt 0:00:02]} Kg6 {[%emt 0:00:11]} 28. Kd3 {[%emt 0:00:05]} Be5 {[%emt 0:00:04]} 29. c4 {[%emt 0:00:13]} f5 {[%emt 0:00:11]} 30. b4 {[%emt 0:00:59]} f4 {[%emt 0:00:08]} 31. Bd4 {[%emt 0:00:06]} Kf5 {[%emt 0:00:02]} 32. a4 {[%emt 0:00:09]} Bxd4 {[%emt 0:02:11]} 33. Kxd4 {[%emt 0:00:04]} Re8 {[%emt 0:00:01]} 34. Kd3 {[%emt 0:00:19]} f3 {[%emt 0:00:01]} 35. gxf3 {[%emt 0:00:16]} Kf4 {[%emt 0:00:01]} 36. Rg1 {[%emt 0:00:08]} Kxf3 {[%emt 0:00:27]} 37. Rxg5 {[%emt 0:00:03]} Kxf2 {[%emt 0:00:01]} 38. Kd4 {[%emt 0:01:19]} Re3 {[%emt 0:01:37]} 39. Rg2+ {[%emt 0:00:34]} Kf3 {[%emt 0:00:01]} 40. Rg4 {[%emt 0:00:05]} Ra3 {[%emt 0:00:07]} 41. b5 {[%emt 0:00:15]} Rxa4 {[%emt 0:00:08]} 42. bxa6 {[%emt 0:00:04]} Rxa6 {[%emt 0:00:02]} 43. Rxh4 {[%emt 0:00:02]} c6 {[%emt 0:01:10]} 44. dxc6 {[%emt 0:00:52]} Rxc6 {[%emt 0:00:04]} 45. Rg4 {[%emt 0:00:04]} Rc5 {[%emt 0:00:30]} 46. Rg6 {[%emt 0:00:06]} Rc6 {[%emt 0:00:01]} 47. h4 {[%emt 0:00:07]} Kf4 {[%emt 0:00:22]} 48. h5 {[%emt 0:00:12]} Kf5 {[%emt 0:00:07]} 49. Rg1 {[%emt 0:00:03]} Rc7 {[%emt 0:00:06]} 50. h6 {[%emt 0:00:10]} Rh7 {[%emt 0:00:06]} 51. Rh1 {[%emt 0:00:18]} Ke6 {[%emt 0:00:05]} 52. Rh2 {[%emt 0:00:04]} Ke7 {[%emt 0:00:16]} 53. Kd5 {[%emt 0:00:06]} Kd7 {[%emt 0:00:01]} 54. Rh1 {[%emt 0:00:14]} Ke7 {[%emt 0:00:02]} 55. Kc6 {[%emt 0:00:05]} Ke6 {[%emt 0:00:04]} 56. Re1+ {[%emt 0:00:03]} Kf7 {[%emt 0:00:02]} 57. Kxd6 {[%emt 0:00:03]} Rxh6+ {[%emt 0:00:01]} 58. Kd7 {[%emt 0:00:05]} Rh5 {[%emt 0:00:10]} 59. Rf1+ {[%emt 0:00:03]} Kg7 {[%emt 0:00:01]} 60. Kd6 {[%emt 0:00:04]} Rh6+ {[%emt 0:00:03]} 61. Kd5 {[%emt 0:00:05]} Rh5+ {[%emt 0:00:06]} 62. Kc6 {[%emt 0:00:02]} Rh6+ {[%emt 0:00:10]} 63. Kb5 {[%emt 0:00:01]} 1-0

[Event "European Online Club-ch-G 2021"]
[Site "Online"]
[Date "2021.03.27"]
[Round "3.16"]
[White "Paseka, Matyas"]
[Black "Derakhshani, Borna"]
[Result "0-1"]
[ECO "B14"]
[WhiteElo "2069"]
[BlackElo "2373"]
[Annotator "NA"]
[PlyCount "66"]
[EventDate "2021.03.27"]
[EventType "team-tourn"]
[EventCountry "NET"]
[SourceTitle "playchess.com"]
[Source "ChessBase"]
[SourceQuality "1"]
[TimeControl "900+5"]

1. e4 {[%emt 0:00:00]} c6 {[%emt 0:00:03]} 2. d4 {[%emt 0:00:05]} d5 {[%emt 0:00:01]} 3. exd5 {[%emt 0:00:03]} cxd5 {[%emt 0:00:01]} 4. c4 {[%emt 0:00:02]} Nf6 {[%emt 0:00:05]} 5. Nc3 {[%emt 0:00:02]} Nc6 {[%emt 0:00:02]} 6. Bg5 {[%emt 0:00:09]} e6 {[%emt 0:00:23]} 7. Nf3 {[%emt 0:00:04]} Bb4 {[%emt 0:00:07]} 8. a3 {[%emt 0:00:44]} Be7 {[%emt 0:00:03]} 9. Bd3 {[%emt 0:00:06]} dxc4 {[%emt 0:00:03]} 10. Bxc4 {[%emt 0:00:03]} Nd5 {[%emt 0:00:08]} 11. Bxe7 {[%emt 0:01:14]} Ndxe7 {[%emt 0:00:19]} 12. O-O {[%emt 0:01:10]} O-O {[%emt 0:00:05]} 13. Rc1 {[%emt 0:00:34]} Qa5 {[%emt 0:00:52]} 14. Ba2 {[%emt 0:02:08]} Rd8 {[%emt 0:00:50]} 15. Qd3 {[%emt 0:01:39]} b6 {[%emt 0:01:31]} 16. Bb1 {[%emt 0:00:26]} Qh5 {[%emt 0:00:36]} 17. Ne2 {[%emt 0:01:27]} Bb7 {[%emt 0:00:23]} 18. Ng3 {[%emt 0:00:22]} Qh6 {[%emt 0:00:04]} 19. Rfd1 {[%emt 0:00:29]} Rac8 {[%emt 0:00:22]} 20. Ba2 {[%emt 0:01:05]} Qf4 {[%emt 0:02:21]} 21. Bb1 {[%emt 0:00:54]} Ng6 {[%emt 0:00:18]} 22. h4 {[%emt 0:00:45]} h6 {[%emt 0:00:47]} 23. h5 {[%emt 0:01:19]} Nf8 {[%emt 0:00:04]} 24. Ne2 {[%emt 0:01:25]} Qf6 {[%emt 0:00:10]} 25. Qe3 {[%emt 0:00:11]} Ne7 {[%emt 0:00:19]} 26. Ne5 {[%emt 0:00:24]} Nf5 {[%emt 0:00:15]} 27. Qf4 {[%emt 0:00:09]} Rxc1 {[%emt 0:00:28]} 28. Nxc1 {[%emt 0:00:10]} Nxd4 {[%emt 0:01:59]} 29. Rxd4 {[%emt 0:00:03]} Rxd4 {[%emt 0:00:02]} 30. Qxd4 {[%emt 0:00:01]} Qg5 {[%emt 0:00:01]} 31. f3 {[%emt 0:00:14]} Qxc1+ {[%emt 0:00:04]} 32. Kh2 {[%emt 0:00:06]} Qxb1 {[%emt 0:00:03]} 33. Qf4 {[%emt 0:00:05]} Qf5 {[%emt 0:00:03]} 0-1

[Event "European Online Club-ch-G 2021"]
[Site "Online"]
[Date "2021.03.27"]
[Round "3.17"]
[White "Borhy, Marcell"]
[Black "Sevdimaliyev, Urfan"]
[Result "1/2-1/2"]
[ECO "D73"]
[WhiteElo "2392"]
[BlackElo "2369"]
[Annotator "NA"]
[PlyCount "171"]
[EventDate "2021.03.27"]
[EventType "team-tourn"]
[EventCountry "NET"]
[SourceTitle "playchess.com"]
[Source "ChessBase"]
[SourceQuality "1"]
[TimeControl "900+5"]

1. c4 {[%emt 0:00:00]} Nf6 {[%emt 0:00:15]} 2. d4 {[%emt 0:00:08]} g6 {[%emt 0:00:26]} 3. g3 {[%emt 0:00:04]} c6 {[%emt 0:00:40]} 4. Bg2 {[%emt 0:00:03]} d5 {[%emt 0:00:31]} 5. Qa4 {[%emt 0:00:03]} dxc4 {[%emt 0:00:45]} 6. Qxc4 {[%emt 0:00:02]} Bg7 {[%emt 0:00:29]} 7. Nf3 {[%emt 0:00:06]} O-O {[%emt 0:00:07]} 8. Nc3 {[%emt 0:00:16]} Nfd7 {[%emt 0:00:51]} 9. O-O {[%emt 0:00:09]} Nb6 {[%emt 0:00:28]} 10. Qd3 {[%emt 0:00:32]} N8d7 {[%emt 0:00:20]} 11. Bf4 {[%emt 0:00:34]} Nd5 {[%emt 0:01:08]} 12. Nxd5 {[%emt 0:01:19]} cxd5 {[%emt 0:00:04]} 13. Rfc1 {[%emt 0:00:24]} Nb6 {[%emt 0:00:21]} 14. Bc7 {[%emt 0:00:59]} Qe8 {[%emt 0:00:08]} 15. Bxb6 {[%emt 0:01:04]} axb6 {[%emt 0:00:04]} 16. Qb3 {[%emt 0:00:28]} Qd8 {[%emt 0:00:40]} 17. e3 {[%emt 0:00:31]} e6 {[%emt 0:01:23]} 18. Rc3 {[%emt 0:00:28]} Bd7 {[%emt 0:00:08]} 19. Rac1 {[%emt 0:00:15]} Ba4 {[%emt 0:00:20]} 20. Qa3 {[%emt 0:00:53]} Bd1 {[%emt 0:00:52]} 21. Qb4 {[%emt 0:00:05]} Bxf3 {[%emt 0:00:15]} 22. Bxf3 {[%emt 0:00:02]} Rxa2 {[%emt 0:00:09]} 23. Rc7 {[%emt 0:00:42]} e5 {[%emt 0:00:41]} 24. Qb3 {[%emt 0:00:45]} Ra1 {[%emt 0:01:05]} 25. Rxa1 {[%emt 0:01:00]} Qxc7 {[%emt 0:00:04]} 26. dxe5 {[%emt 0:00:07]} Qxe5 {[%emt 0:00:53]} 27. Bxd5 {[%emt 0:00:05]} Qxb2 {[%emt 0:00:14]} 28. Qxb2 {[%emt 0:00:03]} Bxb2 {[%emt 0:00:04]} 29. Rb1 {[%emt 0:00:01]} Be5 {[%emt 0:00:26]} 30. Rxb6 {[%emt 0:00:09]} Rb8 {[%emt 0:00:07]} 31. f4 {[%emt 0:02:24]} Bg7 {[%emt 0:00:27]} 32. Kg2 {[%emt 0:00:12]} Kf8 {[%emt 0:00:04]} 33. Kf3 {[%emt 0:00:07]} f5 {[%emt 0:00:14]} 34. h3 {[%emt 0:00:08]} Rd8 {[%emt 0:00:29]} 35. Bxb7 {[%emt 0:00:05]} Rb8 {[%emt 0:00:06]} 36. Rb5 {[%emt 0:00:09]} Ke7 {[%emt 0:00:11]} 37. g4 {[%emt 0:00:09]} fxg4+ {[%emt 0:00:06]} 38. hxg4 {[%emt 0:00:03]} Kd6 {[%emt 0:00:42]} 39. e4 {[%emt 0:00:46]} Kc7 {[%emt 0:00:08]} 40. Bc6 {[%emt 0:00:22]} Rxb5 {[%emt 0:00:04]} 41. Bxb5 {[%emt 0:00:01]} g5 {[%emt 0:00:12]} 42. fxg5 {[%emt 0:00:59]} Be5 {[%emt 0:00:04]} 43. Bc4 {[%emt 0:00:05]} Kd6 {[%emt 0:00:17]} 44. Bg8 {[%emt 0:00:02]} Ke7 {[%emt 0:00:06]} 45. Bxh7 {[%emt 0:00:02]} Kf7 {[%emt 0:00:04]} 46. Bf5 {[%emt 0:00:02]} Ke7 {[%emt 0:00:14]} 47. Kg2 {[%emt 0:00:06]} Bf4 {[%emt 0:00:06]} 48. Kf3 {[%emt 0:00:31]} Bxg5 {[%emt 0:00:05]} 49. e5 {[%emt 0:00:01]} Bc1 {[%emt 0:00:11]} 50. Ke4 {[%emt 0:00:04]} Bh6 {[%emt 0:00:14]} 51. Bc8 {[%emt 0:00:02]} Bg7 {[%emt 0:00:28]} 52. Kf5 {[%emt 0:00:02]} Bh8 {[%emt 0:00:05]} 53. g5 {[%emt 0:00:05]} Bg7 {[%emt 0:00:04]} 54. Ba6 {[%emt 0:00:44]} Bh8 {[%emt 0:00:08]} 55. Bc4 {[%emt 0:00:01]} Bg7 {[%emt 0:00:04]} 56. e6 {[%emt 0:00:24]} Bc3 {[%emt 0:00:09]} 57. Kg6 {[%emt 0:00:04]} Bd2 {[%emt 0:00:06]} 58. Kh5 {[%emt 0:00:17]} Bc3 {[%emt 0:00:14]} 59. Kh6 {[%emt 0:00:02]} Bd2 {[%emt 0:00:04]} 60. Bb3 {[%emt 0:00:04]} Be3 {[%emt 0:00:05]} 61. Kh5 {[%emt 0:00:02]} Bd4 {[%emt 0:00:03]} 62. Kg6 {[%emt 0:00:11]} Be3 {[%emt 0:00:05]} 63. Kh6 {[%emt 0:00:01]} Bd2 {[%emt 0:00:03]} 64. Kh5 {[%emt 0:00:21]} Bc3 {[%emt 0:00:10]} 65. g6 {[%emt 0:00:02]} Bg7 {[%emt 0:00:03]} 66. Kg5 {[%emt 0:00:01]} Bf8 {[%emt 0:00:06]} 67. Kf5 {[%emt 0:00:06]} Bg7 {[%emt 0:00:06]} 68. Ba4 {[%emt 0:00:02]} Bf8 {[%emt 0:00:06]} 69. Bd7 {[%emt 0:00:01]} Bg7 {[%emt 0:00:05]} 70. Kg5 {[%emt 0:00:03]} Bf8 {[%emt 0:00:03]} 71. Kg4 {[%emt 0:00:04]} Bg7 {[%emt 0:00:04]} 72. Kf5 {[%emt 0:00:02]} Bf8 {[%emt 0:00:03]} 73. Be8 {[%emt 0:00:21]} Bg7 {[%emt 0:00:05]} 74. Bf7 {[%emt 0:00:02]} Bf8 {[%emt 0:00:02]} 75. Kg5 {[%emt 0:00:13]} Bg7 {[%emt 0:00:03]} 76. Kh5 {[%emt 0:00:01]} Bf8 {[%emt 0:00:03]} 77. Bg8 {[%emt 0:00:01]} Bg7 {[%emt 0:00:03]} 78. Kg5 {[%emt 0:00:02]} Bf8 {[%emt 0:00:02]} 79. g7 {[%emt 0:00:01]} Bxg7 {[%emt 0:00:03]} 80. Kg6 {[%emt 0:00:02]} Bb2 {[%emt 0:00:03]} 81. Bf7 {[%emt 0:00:03]} Ba1 {[%emt 0:00:05]} 82. Kf5 {[%emt 0:00:04]} Bb2 {[%emt 0:00:02]} 83. Ke4 {[%emt 0:00:02]} Ba1 {[%emt 0:00:02]} 84. Kf5 {[%emt 0:00:01]} Bb2 {[%emt 0:00:02]} 85. Ke4 {[%emt 0:00:01]} Ba1 {[%emt 0:00:03]} 86. Kf5 {[%emt 0:00:02]} 1/2-1/2

[Event "European Online Club-ch-G 2021"]
[Site "Online"]
[Date "2021.03.27"]
[Round "3.18"]
[White "Babayev, Talib"]
[Black "Krstulovic, Alex"]
[Result "0-1"]
[ECO "B12"]
[WhiteElo "2282"]
[BlackElo "2387"]
[Annotator "NA"]
[PlyCount "90"]
[EventDate "2021.03.27"]
[EventType "team-tourn"]
[EventCountry "NET"]
[SourceTitle "playchess.com"]
[Source "ChessBase"]
[SourceQuality "1"]
[TimeControl "900+5"]

1. e4 {[%emt 0:00:00]} c6 {[%emt 0:00:02]} 2. d4 {[%emt 0:00:04]} d5 {[%emt 0:00:01]} 3. e5 {[%emt 0:00:04]} c5 {[%emt 0:00:01]} 4. dxc5 {[%emt 0:00:05]} e6 {[%emt 0:00:01]} 5. Be3 {[%emt 0:00:16]} Ne7 {[%emt 0:00:15]} 6. c3 {[%emt 0:00:06]} Nf5 {[%emt 0:00:06]} 7. Bd4 {[%emt 0:00:07]} Qc7 {[%emt 0:02:50]} 8. b4 {[%emt 0:01:23]} Nc6 {[%emt 0:00:20]} 9. Nf3 {[%emt 0:00:08]} Nfxd4 {[%emt 0:00:03]} 10. cxd4 {[%emt 0:00:33]} Nxb4 {[%emt 0:00:03]} 11. Qa4+ {[%emt 0:00:02]} Nc6 {[%emt 0:00:02]} 12. Nc3 {[%emt 0:00:02]} Bd7 {[%emt 0:00:12]} 13. Nb5 {[%emt 0:00:04]} Qd8 {[%emt 0:00:09]} 14. Qa3 {[%emt 0:01:02]} f6 {[%emt 0:00:14]} 15. exf6 {[%emt 0:00:48]} gxf6 {[%emt 0:00:00]} 16. Bd3 {[%emt 0:00:05]} a6 {[%emt 0:00:35]} 17. Nd6+ {[%emt 0:00:08]} Bxd6 {[%emt 0:00:04]} 18. cxd6 {[%emt 0:00:01]} Qa5+ {[%emt 0:00:04]} 19. Qxa5 {[%emt 0:00:05]} Nxa5 {[%emt 0:00:00]} 20. O-O {[%emt 0:00:12]} Rc8 {[%emt 0:00:44]} 21. Rfe1 {[%emt 0:00:41]} Rc6 {[%emt 0:00:17]} 22. Rac1 {[%emt 0:00:25]} Rxd6 {[%emt 0:00:12]} 23. Rc5 {[%emt 0:00:04]} Nc6 {[%emt 0:00:16]} 24. Rb1 {[%emt 0:00:13]} Bc8 {[%emt 0:00:19]} 25. a4 {[%emt 0:00:26]} Kd7 {[%emt 0:00:07]} 26. h3 {[%emt 0:01:00]} h6 {[%emt 0:00:08]} 27. g4 {[%emt 0:00:20]} Rg8 {[%emt 0:00:13]} 28. Kf1 {[%emt 0:00:04]} Rg7 {[%emt 0:00:02]} 29. Ke2 {[%emt 0:00:21]} Kd8 {[%emt 0:00:02]} 30. Rbc1 {[%emt 0:00:28]} Rc7 {[%emt 0:00:04]} 31. Ke3 {[%emt 0:00:13]} Bd7 {[%emt 0:00:27]} 32. Ne5 {[%emt 0:00:27]} fxe5 {[%emt 0:00:13]} 33. dxe5 {[%emt 0:00:06]} d4+ {[%emt 0:00:00]} 34. Ke4 {[%emt 0:00:09]} Rd5 {[%emt 0:00:02]} 35. f4 {[%emt 0:00:15]} Rxc5 {[%emt 0:01:58]} 36. Rxc5 {[%emt 0:00:06]} Nb4 {[%emt 0:00:01]} 37. Rxc7 {[%emt 0:00:08]} Kxc7 {[%emt 0:00:00]} 38. Kxd4 {[%emt 0:00:07]} Nxd3 {[%emt 0:00:02]} 39. Kxd3 {[%emt 0:00:02]} Bxa4 {[%emt 0:00:01]} 40. f5 {[%emt 0:00:02]} exf5 {[%emt 0:00:02]} 41. gxf5 {[%emt 0:00:03]} Bd7 {[%emt 0:00:01]} 42. Ke4 {[%emt 0:00:04]} Bxf5+ {[%emt 0:00:19]} 43. Kxf5 {[%emt 0:00:04]} Kd8 {[%emt 0:00:02]} 44. Kg6 {[%emt 0:00:05]} Ke8 {[%emt 0:00:01]} 45. Kxh6 {[%emt 0:00:08]} a5 {[%emt 0:00:02]} 0-1

[Event "European Online Club-ch-G 2021"]
[Site "Online"]
[Date "2021.03.27"]
[Round "3.19"]
[White "Karacsonyi, Gellert"]
[Black "Gasimov, Parviz"]
[Result "1-0"]
[ECO "C07"]
[WhiteElo "2321"]
[BlackElo "2337"]
[Annotator "NA"]
[PlyCount "95"]
[EventDate "2021.03.27"]
[EventType "team-tourn"]
[EventCountry "NET"]
[SourceTitle "playchess.com"]
[Source "ChessBase"]
[SourceQuality "1"]
[TimeControl "900+5"]

1. e4 {[%emt 0:00:00]} e6 {[%emt 0:00:03]} 2. d4 {[%emt 0:00:03]} d5 {[%emt 0:00:02]} 3. Nd2 {[%emt 0:00:05]} c5 {[%emt 0:00:03]} 4. exd5 {[%emt 0:00:02]} Qxd5 {[%emt 0:00:02]} 5. Ngf3 {[%emt 0:00:02]} cxd4 {[%emt 0:00:03]} 6. Bc4 {[%emt 0:00:07]} Qd7 {[%emt 0:00:02]} 7. O-O {[%emt 0:00:06]} Nc6 {[%emt 0:00:03]} 8. Nb3 {[%emt 0:00:16]} a6 {[%emt 0:00:03]} 9. Nbxd4 {[%emt 0:00:04]} Nxd4 {[%emt 0:00:02]} 10. Nxd4 {[%emt 0:00:00]} Qc7 {[%emt 0:00:02]} 11. Bd3 {[%emt 0:00:14]} Bd6 {[%emt 0:00:24]} 12. Qh5 {[%emt 0:00:05]} Nf6 {[%emt 0:00:40]} 13. Qh4 {[%emt 0:00:09]} Bd7 {[%emt 0:00:06]} 14. Rb1 {[%emt 0:00:08]} O-O-O {[%emt 0:03:58]} 15. b4 {[%emt 0:00:03]} h6 {[%emt 0:03:33]} 16. b5 {[%emt 0:00:03]} g5 {[%emt 0:00:14]} 17. Qh3 {[%emt 0:00:02]} a5 {[%emt 0:00:51]} 18. b6 {[%emt 0:00:03]} Qc5 {[%emt 0:01:08]} 19. Be3 {[%emt 0:04:53]} Nd5 {[%emt 0:00:42]} 20. Nb3 {[%emt 0:01:17]} Qa3 {[%emt 0:00:38]} 21. Bd2 {[%emt 0:01:56]} Nf4 {[%emt 0:01:07]} 22. Qf3 {[%emt 0:02:04]} g4 {[%emt 0:02:05]} 23. Qe4 {[%emt 0:00:30]} Bc6 {[%emt 0:00:09]} 24. Qc4 {[%emt 0:00:02]} Nxd3 {[%emt 0:00:08]} 25. cxd3 {[%emt 0:00:10]} Kb8 {[%emt 0:00:07]} 26. Nxa5 {[%emt 0:01:24]} Bd5 {[%emt 0:00:06]} 27. Qb5 {[%emt 0:00:34]} Qc5 {[%emt 0:00:17]} 28. Qa4 {[%emt 0:00:14]} Qa3 {[%emt 0:00:13]} 29. Qb5 {[%emt 0:00:38]} Qc5 {[%emt 0:00:03]} 30. Qb2 {[%emt 0:00:03]} Qa3 {[%emt 0:00:15]} 31. Qf6 {[%emt 0:00:13]} Rhg8 {[%emt 0:00:14]} 32. Bf4 {[%emt 0:00:05]} Qxd3 {[%emt 0:00:08]} 33. Bxd6+ {[%emt 0:00:44]} Rxd6 {[%emt 0:00:04]} 34. Qxf7 {[%emt 0:00:01]} Rdd8 {[%emt 0:00:08]} 35. Qc7+ {[%emt 0:00:34]} Ka8 {[%emt 0:00:03]} 36. Rb4 {[%emt 0:00:01]} Rc8 {[%emt 0:00:07]} 37. Qe5 {[%emt 0:00:46]} Bf3 {[%emt 0:00:04]} 38. Ra4 {[%emt 0:00:14]} Qxf1+ {[%emt 0:00:07]} 39. Kxf1 {[%emt 0:00:00]} Rc1+ {[%emt 0:00:03]} 40. Qe1 {[%emt 0:00:02]} Rxe1+ {[%emt 0:00:07]} 41. Kxe1 {[%emt 0:00:00]} Kb8 {[%emt 0:00:04]} 42. gxf3 {[%emt 0:00:02]} gxf3 {[%emt 0:00:03]} 43. Rf4 {[%emt 0:00:02]} Kc8 {[%emt 0:00:06]} 44. Rxf3 {[%emt 0:00:03]} Rg5 {[%emt 0:00:03]} 45. Nc4 {[%emt 0:00:02]} Rc5 {[%emt 0:00:03]} 46. Nd6+ {[%emt 0:00:11]} Kd7 {[%emt 0:00:05]} 47. Nxb7 {[%emt 0:00:02]} Rc2 {[%emt 0:00:02]} 48. Rb3 {[%emt 0:00:08]} 1-0